fUST/lending_fUST_20260228
["ID","MTS","AMOUNT","RATE_DAILY","PERIOD"]
[406899469,1772267544991,-2445.15,0.00017808,2]
[406899470,1772267545001,-4088.91,0.00017808,2]
[406899471,1772267545011,-2774.65,0.00017808,2]
[406899472,1772267545020,-3783.55,0.00017808,2]
[406899473,1772267545029,-1333.68,0.00017808,2]
[406899474,1772267545041,-14153.91,0.00017808,2]
[406899475,1772267545051,-500.0,0.00017808,2]
[406899476,1772267545061,-3218.57,0.00017808,2]
[406899477,1772267545071,-2092.55,0.00017808,2]
[406899478,1772267545081,-2893.22,0.00017808,2]
[406899479,1772267545092,-2259.28,0.00017808,2]
[406899480,1772267545101,-1798.11,0.00017808,2]
[406899481,1772267545111,-540.91,0.00017808,2]
[406899482,1772267545120,-500.0,0.00017808,2]
[406899483,1772267545135,-16752.77,0.00017808,2]
[406899484,1772267545155,-500.97,0.00017808,2]
[406899485,1772267545176,-526.47,0.00017808,2]
[406899486,1772267545196,-1638.09,0.00017808,2]
[406899487,1772267545209,-4470.34,0.00017808,2]
[406899488,1772267545219,-2160.15,0.00017808,2]
[406899489,1772267545228,-611.61,0.00017808,2]
[406899490,1772267545238,-587.54,0.00017808,2]
[406899491,1772267545248,-379.65633083,0.00017808,2]
[406899492,1772267545258,-679.97,0.00017808,2]
[406899493,1772267545268,-62454.68,0.00017808,2]
[406899494,1772267545279,-500.0,0.00017808,2]
[406899495,1772267545292,-4931.54,0.00017808,2]
[406899496,1772267545302,-691.25,0.00017808,2]
[406899497,1772267545312,-2603.07,0.00017808,2]
[406899498,1772267545322,-7026.09,0.00017808,2]
[406899499,1772267545332,-668.0,0.00017808,2]
[406899500,1772267545343,-1193.68,0.00017808,2]
[406899501,1772267545352,-635.83,0.00017808,2]
[406899502,1772267545362,-500.0,0.00017808,2]
[406899503,1772267545374,-1018.54,0.00017808,2]
[406899504,1772267545384,-8795.12,0.00017808,2]
[406899505,1772267545394,-511.19,0.00017808,2]
[406899506,1772267545404,-500.0,0.00017808,2]
[406899507,1772267545418,-500.0,0.00017808,2]
[406899508,1772267545428,-2059.67,0.00017808,2]
[406899509,1772267545438,-2791.04,0.00017808,2]
[406899510,1772267545448,-500.0,0.00017808,2]
[406899511,1772267545458,-4120.89,0.00017808,2]
[406899512,1772267545468,-738.7,0.00017808,2]
[406899513,1772267545478,-858.19,0.00017808,2]
[406899514,1772267545489,-1558.46,0.00017808,2]
[406899515,1772267545499,-3104.3,0.00017808,2]
[406899516,1772267545510,-41294.65,0.00017808,2]
[406899517,1772267545520,-500.0,0.00017808,2]
[406899518,1772267545530,-4305.9,0.00017808,2]
[406899519,1772267545540,-1079.08,0.00017808,2]
[406899520,1772267545550,-17553.64,0.00017808,2]
[406899521,1772267545560,-829.59,0.00017808,2]
[406899522,1772267545570,-1590.25,0.00017808,2]
[406899523,1772267545580,-1094.77,0.00017808,2]
[406899524,1772267545590,-836.94,0.00017808,2]
[406899525,1772267545600,-2501.06,0.00017808,2]
[406899526,1772267545610,-624.89,0.00017808,2]
[406899527,1772267545620,-500.0,0.00017808,2]
[406899528,1772267545630,-587.66,0.00017808,2]
[406899529,1772267545640,-612.52,0.00017808,2]
[406899530,1772267545650,-798.52,0.00017808,2]
[406899531,1772267545660,-920.96,0.00017808,2]
[406899532,1772267545670,-502.1,0.00017808,2]
[406899533,1772267545680,-833.23,0.00017808,2]
[406899534,1772267545691,-1661.19,0.00017808,2]
[406899535,1772267545701,-884.15,0.00017808,2]
[406899536,1772267545711,-997.87,0.00017808,2]
[406899537,1772267545721,-714.12,0.00017808,2]
[406899538,1772267545731,-2806.98,0.00017808,2]
[406899539,1772267545741,-3389.85,0.00017808,2]
[406899540,1772267545751,-500.0,0.00017808,2]
[406899541,1772267545761,-500.0,0.00017808,2]
[406899542,1772267545771,-736.98,0.00017808,2]
[406899543,1772267545780,-3040.54,0.00017808,2]
[406899544,1772267545792,-1624.77,0.00017808,2]
[406899545,1772267545802,-8862.41,0.00017808,2]
[406899546,1772267545812,-21682.96,0.00017808,2]
[406899547,1772267545823,-1097.26,0.00017808,2]
[406899548,1772267545832,-500.0,0.00017808,2]
[406899549,1772267545842,-7502.8,0.00017808,2]
[406899550,1772267545852,-565.02,0.00017808,2]
[406899551,1772267545863,-6625.37,0.00017808,2]
[406899552,1772267545873,-2462.23,0.00017808,2]
[406899553,1772267545883,-1430.4,0.00017808,2]
[406899554,1772267545893,-1591.21,0.00017808,2]
[406899555,1772267545903,-1097.85,0.00017808,2]
[406899556,1772267545913,-941.74,0.00017808,2]
[406899557,1772267545924,-2991.59,0.00017808,2]
[406899558,1772267545934,-1208.52,0.00017808,2]
[406899559,1772267545945,-1852.72,0.00017808,2]
[406899560,1772267545955,-500.0,0.00017808,2]
[406899561,1772267545965,-2739.1,0.00017808,2]
[406899562,1772267545975,-500.0,0.00017808,2]
[406899563,1772267545985,-3806.49,0.00017808,2]
[406899564,1772267545995,-7703.07,0.00017808,2]
[406899565,1772267546006,-515.24,0.00017808,2]
[406899566,1772267546017,-1269.75,0.00017808,2]
[406899567,1772267546027,-2065.59,0.00017808,2]
[406899568,1772267546039,-1723.78,0.00017808,2]
[406899569,1772267546050,-2115.78,0.00017808,2]
[406899570,1772267546060,-1897.54,0.00017808,2]
[406899571,1772267546070,-3092.48,0.00017808,2]
[406899572,1772267546081,-500.0,0.00017808,2]
[406899573,1772267546091,-922.16,0.00017808,2]
[406899574,1772267546101,-1034.45,0.00017808,2]
[406899575,1772267546111,-4771.37,0.00017808,2]
[406899576,1772267546122,-500.0,0.00017808,2]
[406899577,1772267546132,-1231.85,0.00017808,2]
[406899578,1772267546143,-150.0,0.00017808,2]
[406899579,1772267546156,-2402.70625083,0.000179,2]
[406899580,1772267546166,-2402.70625083,0.000179,2]
[406899581,1772267546176,-2402.70625083,0.000179,2]
[406899582,1772267546187,-2402.70625083,0.000179,2]
[406899583,1772267546198,-500.288,0.00017931,2]
[406899584,1772267546208,-939.8342441,0.00017938,18]
[406899585,1772267546219,-700.04047223,0.00018,5]
[406899586,1772267546229,-565.0,0.00018,2]
[406899587,1772267546238,-216.0,0.00018,50]
[406899588,1772267546249,-117302.67552106,0.00018,2]
[406899589,1772267546258,-110444.94403121,0.00018,2]
[406899590,1772267546268,-300.31820384,0.00018,2]
[406899591,1772267546278,-21141.0,0.00018,2]
[406899592,1772267546291,-11597.04265961,0.00018,2]
[406899593,1772267546302,-324.3,0.00018082,2]
[406899594,1772267546314,-607.58,0.00018082,2]
[406899595,1772267546324,-500.0,0.00018082,2]
[406899596,1772267546335,-980.59,0.00018082,2]
[406899597,1772267546344,-544.64612481,0.00018082,2]
[406899598,1772267546355,-500.0,0.00018082,2]
[406899599,1772267546365,-1353.85,0.00018082,2]
[406899600,1772267546375,-1322.07,0.00018082,2]
[406899601,1772267546386,-692.0,0.00018082,2]
[406899602,1772267546397,-564.22,0.00018082,2]
[406899603,1772267546407,-520.93,0.00018082,2]
[406899604,1772267546418,-500.0,0.00018082,2]
[406899605,1772267546429,-500.0,0.00018082,2]
[406899606,1772267546439,-1711.44,0.00018082,2]
[406899607,1772267546450,-2726.35,0.00018082,2]
[406899608,1772267546461,-500.0,0.00018082,2]
[406899609,1772267546471,-1744.45,0.00018082,2]
[406899610,1772267546482,-500.0,0.00018082,2]
[406899611,1772267546493,-1041.8,0.00018082,2]
[406899612,1772267546503,-737.4,0.00018082,2]
[406899613,1772267546514,-2718.46,0.00018082,2]
[406899614,1772267546524,-770.65,0.00018082,2]
[406899615,1772267546534,-902.4,0.00018082,2]
[406899616,1772267546547,-989.47,0.00018082,2]
[406899617,1772267546558,-558.27,0.00018082,2]
[406899618,1772267546568,-603.96,0.00018082,2]
[406899619,1772267546579,-500.58,0.00018082,2]
[406899620,1772267546590,-2062.12,0.00018082,2]
[406899621,1772267546601,-719.5,0.00018082,2]
[406899622,1772267546611,-525.56,0.00018082,2]
[406899623,1772267546622,-500.0,0.00018082,2]
[406899624,1772267546632,-546.89,0.00018082,2]
[406899625,1772267546643,-1727.31,0.00018082,2]
[406899626,1772267546653,-514.02,0.00018082,2]
[406899627,1772267546663,-860.84,0.00018082,2]
[406899628,1772267546674,-955.26,0.00018082,2]
[406899629,1772267546684,-500.0,0.00018082,2]
[406899630,1772267546695,-725.73,0.00018082,2]
[406899631,1772267546705,-914.38,0.00018082,2]
[406899632,1772267546715,-1116.21,0.00018082,2]
[406899633,1772267546725,-579.95,0.00018082,2]
[406899634,1772267546948,-1326.22,0.00018082,2]
[406899635,1772267546960,-1036.26,0.00018082,2]
[406899636,1772267546970,-936.85,0.00018082,2]
[406899637,1772267546980,-547.18,0.00018082,2]
[406899638,1772267546990,-1250.68,0.00018082,2]
[406899639,1772267547000,-1196.3,0.00018082,2]
[406899640,1772267547010,-1024.08,0.00018082,2]
[406899641,1772267547019,-898.6,0.00018082,2]
[406899642,1772267547030,-500.0,0.00018082,2]
[406899643,1772267547042,-500.0,0.00018082,2]
[406899644,1772267547052,-609.4,0.00018082,2]
[406899645,1772267547062,-1312.05,0.00018082,2]
[406899646,1772267547072,-937.86,0.00018082,2]
[406899647,1772267547082,-651.8,0.00018082,2]
[406899648,1772267547095,-189.07832202,0.00018082,2]
[406899649,1772267547106,-500.0,0.00018082,2]
[406899650,1772267547117,-500.0,0.00018082,2]
[406899651,1772267547127,-517.11,0.00018082,2]
[406899652,1772267547138,-500.0,0.00018082,2]
[406899653,1772267547149,-500.0,0.00018082,2]
[406899654,1772267547159,-1446.65,0.00018082,2]
[406899655,1772267547170,-500.0,0.00018082,2]
[406899656,1772267547179,-1733.53,0.00018082,2]
[406899657,1772267547191,-1436.12,0.00018082,2]
[406899658,1772267547202,-685.31,0.00018082,2]
[406899659,1772267547212,-580.66,0.00018082,2]
[406899660,1772267547222,-571.4,0.00018082,2]
[406899661,1772267547232,-864.92,0.00018082,2]
[406899662,1772267547242,-846.6,0.00018082,2]
[406899663,1772267547252,-1593.78,0.00018082,2]
[406899664,1772267547262,-750.44,0.00018082,2]
[406899665,1772267547272,-1521.42,0.00018082,2]
[406899666,1772267547282,-1247.19,0.00018082,2]
[406899667,1772267547299,-705.82,0.00018082,2]
[406899668,1772267547309,-529.62,0.00018082,2]
[406899669,1772267547319,-484.67319838,0.00018082,2]
[406899670,1772267547329,-500.0,0.00018082,2]
[406899671,1772267547339,-745.32,0.00018082,2]
[406899672,1772267547350,-1605.01,0.00018082,2]
[406899673,1772267547360,-1610.8,0.00018082,2]
[406899674,1772267547370,-1001.72,0.00018082,2]
[406899675,1772267547379,-627.88,0.00018082,2]
[406899676,1772267547389,-1059.56,0.00018082,2]
[406899677,1772267547399,-500.0,0.00018082,2]
[406899678,1772267547409,-917.08,0.00018082,2]
[406899679,1772267547419,-500.0,0.00018082,2]
[406899680,1772267547429,-529.27,0.00018082,2]
[406899681,1772267547439,-927.57,0.00018082,2]
[406899682,1772267547449,-650.87,0.00018082,2]
[406899683,1772267547459,-661.99,0.00018082,2]
[406899684,1772267547470,-500.0,0.00018082,2]
[406899685,1772267547479,-1219.63,0.00018082,2]
[406899686,1772267547489,-500.0,0.00018082,2]
[406899687,1772267547500,-818.16,0.00018082,2]
[406899688,1772267547511,-564.11,0.00018082,2]
[406899689,1772267547521,-500.0,0.00018082,2]
[406899690,1772267547533,-773.68,0.00018082,2]
[406899691,1772267547545,-500.0,0.00018082,2]
[406899692,1772267547555,-1058.67,0.00018082,2]
[406899693,1772267547566,-544.13,0.00018082,2]
[406899694,1772267547576,-500.0,0.00018082,2]
[406899695,1772267547586,-1354.43,0.00018082,2]
[406899696,1772267547596,-500.0,0.00018082,2]
[406899697,1772267547606,-947.35,0.00018082,2]
[406899698,1772267547616,-577.2,0.00018082,2]
[406899699,1772267547625,-617.88,0.00018082,2]
[406899700,1772267547636,-1264.55,0.00018082,2]
[406899701,1772267547646,-609.45,0.00018082,2]
[406899702,1772267547656,-787.95,0.00018082,2]
[406899703,1772267547667,-1665.88,0.00018082,2]
[406899704,1772267547676,-571.43,0.00018082,2]
[406899705,1772267547686,-7573.22,0.00018082,2]
[406899706,1772267547696,-554.61,0.00018082,2]
[406899707,1772267547707,-500.0,0.00018082,2]
[406899708,1772267547718,-500.0,0.00018082,2]
[406899709,1772267547729,-500.0,0.00018082,2]
[406899710,1772267547739,-1743.64,0.00018082,2]
[406899711,1772267547750,-2006.98,0.00018082,2]
[406899712,1772267547760,-647.16,0.00018082,2]
[406899713,1772267547770,-2108.79,0.00018082,2]
[406899714,1772267547780,-839.36,0.00018082,2]
[406899715,1772267547795,-878.12,0.00018082,2]
[406899716,1772267547805,-7180.71,0.00018082,2]
[406899717,1772267547815,-784.54,0.00018082,2]
[406899718,1772267547825,-696.62,0.00018082,2]
[406899719,1772267547835,-854.66,0.00018082,2]
[406899720,1772267547845,-1726.59,0.00018082,2]
[406899721,1772267547855,-1075.35,0.00018082,2]
[406899722,1772267547865,-5780.22,0.00018082,2]
[406899723,1772267547875,-1052.35,0.00018082,2]
[406899724,1772267547884,-1604.1,0.00018082,2]
[406899725,1772267547894,-617.93,0.00018082,2]
[406899726,1772267547903,-1438.35,0.00018082,2]
[406899727,1772267547914,-1671.97,0.00018082,2]
[406899728,1772267547923,-566.35,0.00018082,2]
[406899729,1772267547933,-695.06,0.00018082,2]
[406899730,1772267547943,-692.56,0.00018082,2]
[406899731,1772267547953,-1703.31,0.00018082,2]
[406899732,1772267547963,-1091.8,0.00018082,2]
[406899733,1772267547973,-526.21,0.00018082,2]
[406899734,1772267547983,-1946.78,0.00018082,2]
[406899735,1772267547994,-1093.05,0.00018082,2]
[406899736,1772267548004,-522.9,0.00018082,2]
[406899737,1772267548014,-1010.99,0.00018082,2]
[406899738,1772267548025,-597.64,0.00018082,2]
[406899739,1772267548035,-632.06,0.00018082,2]
[406899740,1772267548048,-1404.24,0.00018082,2]
[406899741,1772267548058,-3447.77,0.00018082,2]
[406899742,1772267548067,-592.02,0.00018082,2]
[406899743,1772267548077,-1639.95,0.00018082,2]
[406899744,1772267548087,-766.57,0.00018082,2]
[406899745,1772267548097,-2199.16,0.00018082,2]
[406899746,1772267548107,-515.11,0.00018082,2]
[406899747,1772267548117,-1033.14,0.00018082,2]
[406899748,1772267548126,-1309.19,0.00018082,2]
[406899749,1772267548136,-1688.18,0.00018082,2]
[406899750,1772267548147,-3009.71,0.00018082,2]
[406899751,1772267548159,-1567.57,0.00018082,2]
[406899752,1772267548169,-500.0,0.00018082,2]
[406899753,1772267548178,-1039.64,0.00018082,2]
[406899754,1772267548188,-578.85,0.00018082,2]
[406899755,1772267548198,-500.0,0.00018082,2]
[406899756,1772267548208,-2382.93,0.00018082,2]
[406899757,1772267548218,-2151.2,0.00018082,2]
[406899758,1772267548229,-1096.15,0.00018082,2]
[406899759,1772267548239,-683.72,0.00018082,2]
[406899760,1772267548248,-832.49,0.00018082,2]
[406899761,1772267548259,-692.6,0.00018082,2]
[406899762,1772267548268,-500.0,0.00018082,2]
[406899763,1772267548279,-3399.35,0.00018082,2]
[406899764,1772267548291,-865.62,0.00018082,2]
[406899765,1772267548301,-929.25,0.00018082,2]
[406899766,1772267548311,-856.18,0.00018082,2]
[406899767,1772267548321,-1271.22,0.00018082,2]
[406899768,1772267548331,-1063.54,0.00018082,2]
[406899769,1772267548341,-1318.72,0.00018082,2]
[406899770,1772267548351,-705.79,0.00018082,2]
[406899771,1772267548362,-2424.89,0.00018082,2]
[406899772,1772267548372,-1446.29,0.00018082,2]
[406899773,1772267548382,-500.0,0.00018082,2]
[406899774,1772267548393,-2361.52,0.00018082,2]
[406899775,1772267548404,-500.0,0.00018082,2]
[406899776,1772267548414,-4592.95,0.00018082,2]
[406899777,1772267548426,-2215.2,0.00018082,2]
[406899778,1772267548436,-1435.8,0.00018082,2]
[406899779,1772267548447,-1576.84,0.00018082,2]
[406899780,1772267548457,-2561.33,0.00018082,2]
[406899781,1772267548467,-1085.51,0.00018082,2]
[406899782,1772267548477,-717.42,0.00018082,2]
[406899783,1772267548487,-1108.2,0.00018082,2]
[406899784,1772267548497,-3100.42,0.00018082,2]
[406899785,1772267548507,-1341.93,0.00018082,2]
[406899786,1772267548517,-1305.67,0.00018082,2]
[406899787,1772267548527,-304.77481599,0.00018082,2]
[406899788,1772267548537,-1472.57,0.00018082,2]
[406899789,1772267548551,-3197.66,0.00018082,2]
[406899790,1772267548562,-561.98,0.00018082,2]
[406899791,1772267548572,-615.34,0.00018082,2]
[406899792,1772267548582,-699.96,0.00018082,2]
[406899793,1772267548592,-500.0,0.00018082,2]
[406899794,1772267548601,-1020.13,0.00018082,2]
[406899795,1772267548611,-500.0,0.00018082,2]
[406899796,1772267548621,-596.63,0.00018082,2]
[406899797,1772267548631,-500.0,0.00018082,2]
[406899798,1772267548641,-1033.36,0.00018082,2]
[406899799,1772267548651,-500.0,0.00018082,2]
[406899800,1772267548660,-500.0,0.00018082,2]
[406899801,1772267548670,-2312.35,0.00018082,2]
[406899802,1772267548681,-955.01,0.00018082,2]
[406899803,1772267548690,-806.51,0.00018082,2]
[406899804,1772267548700,-1522.66,0.00018082,2]
[406899805,1772267548711,-867.0,0.00018082,2]
[406899806,1772267548721,-7146.16,0.00018082,2]
[406899807,1772267548731,-500.0,0.00018082,2]
[406899808,1772267548740,-500.0,0.00018082,2]
[406899809,1772267548750,-1028.35,0.00018082,2]
[406899810,1772267548760,-1008.96,0.00018082,2]
[406899811,1772267548769,-1352.59,0.00018082,2]
[406899812,1772267548780,-506.03,0.00018082,2]
[406899813,1772267548791,-500.0,0.00018082,2]
[406899814,1772267548800,-500.0,0.00018082,2]
[406899815,1772267548811,-500.0,0.00018082,2]
[406899816,1772267548820,-764.41,0.00018082,2]
[406899817,1772267548831,-1761.81,0.00018082,2]
[406899818,1772267548841,-2215.04,0.00018082,2]
[406899819,1772267548851,-517.41,0.00018082,2]
[406899820,1772267548861,-517.59,0.00018082,2]
[406899821,1772267548870,-963.32,0.00018082,2]
[406899822,1772267548880,-700.0,0.00018082,2]
[406899823,1772267548890,-899.12,0.00018082,2]
[406899824,1772267548899,-1300.35,0.00018082,2]
[406899825,1772267548909,-5319.48,0.00018082,2]
[406899826,1772267548919,-1252.77,0.00018082,2]
[406899827,1772267548931,-587.74,0.00018082,2]
[406899828,1772267548941,-1166.63,0.00018082,2]
[406899829,1772267548951,-899.07,0.00018082,2]
[406899830,1772267548961,-2895.24,0.00018082,2]
[406899831,1772267548971,-1068.48,0.00018082,2]
[406899832,1772267548981,-968.49,0.00018082,2]
[406899833,1772267548992,-500.0,0.00018082,2]
[406899834,1772267549002,-2416.57,0.00018082,2]
[406899835,1772267549012,-1587.58,0.00018082,2]
[406899836,1772267549022,-647.96,0.00018082,2]
[406899837,1772267549032,-8070.28,0.00018082,2]
[406899838,1772267549043,-731.15,0.00018082,2]
[406899839,1772267549053,-173.6897601,0.00018082,2]
[406899840,1772267549063,-500.0,0.00018082,2]
[406899841,1772267549074,-1997.06,0.00018082,2]
[406899842,1772267549084,-3186.98,0.00018082,2]
[406899843,1772267549094,-3896.0,0.00018082,2]
[406899844,1772267549104,-527.94,0.00018082,2]
[406899845,1772267549114,-989.6,0.00018082,2]
[406899846,1772267549124,-7025.66,0.00018082,2]
[406899847,1772267549133,-500.0,0.00018082,2]
[406899848,1772267549146,-682.38,0.00018082,2]
[406899849,1772267549156,-728.78,0.00018082,2]
[406899850,1772267549166,-659.28,0.00018082,2]
[406899851,1772267549176,-898.93,0.00018082,2]
[406899852,1772267549187,-793.11,0.00018082,2]
[406899853,1772267549196,-1706.3,0.00018082,2]
[406899854,1772267549206,-659.85,0.00018082,2]
[406899855,1772267549216,-1134.79,0.00018082,2]
[406899856,1772267549227,-11125.25,0.00018082,2]
[406899857,1772267549236,-7153.51,0.00018082,2]
[406899858,1772267549246,-648.35,0.00018082,2]
[406899859,1772267549256,-5078.3,0.00018082,2]
[406899860,1772267549266,-683.43,0.00018082,2]
[406899861,1772267549276,-2723.16,0.00018082,2]
[406899862,1772267549286,-500.0,0.00018082,2]
[406899863,1772267549298,-4724.28,0.00018082,2]
[406899864,1772267549308,-500.0,0.00018082,2]
[406899865,1772267549317,-739.63,0.00018082,2]
[406899866,1772267549327,-500.0,0.00018082,2]
[406899867,1772267549337,-607.09078126,0.00018082,2]
[406899868,1772267549347,-4297.64,0.00018082,2]
[406899869,1772267549356,-737.38,0.00018082,2]
[406899870,1772267549365,-2549.64,0.00018082,2]
[406899871,1772267549375,-1171.08,0.00018082,2]
[406899872,1772267549385,-2640.18,0.00018082,2]
[406899873,1772267549462,-7472.22,0.00018082,2]
[406899874,1772267549472,-500.0,0.00018082,2]
[406899875,1772267549481,-530.37,0.00018082,2]
[406899876,1772267549490,-1765.65,0.00018082,2]
[406899877,1772267549499,-1444.95,0.00018082,2]
[406899878,1772267549509,-4088.91,0.00018082,2]
[406899879,1772267549519,-2774.65,0.00018082,2]
[406899880,1772267549528,-3783.55,0.00018082,2]
[406899881,1772267549538,-2445.15,0.00018082,2]
[406899882,1772267549550,-1333.68,0.00018082,2]
[406899883,1772267549559,-14153.91,0.00018082,2]
[406899884,1772267549569,-500.0,0.00018082,2]
[406899885,1772267549578,-3218.57,0.00018082,2]
[406899886,1772267549588,-2092.55,0.00018082,2]
[406899887,1772267549598,-2893.22,0.00018082,2]
[406899888,1772267549607,-2259.28,0.00018082,2]
[406899889,1772267549617,-1798.11,0.00018082,2]
[406899890,1772267549626,-540.91,0.00018082,2]
[406899891,1772267549636,-500.0,0.00018082,2]
[406899892,1772267549646,-16752.77,0.00018082,2]
[406899893,1772267549655,-526.47,0.00018082,2]
[406899894,1772267549666,-1638.09,0.00018082,2]
[406899895,1772267549676,-4470.34,0.00018082,2]
[406899896,1772267549685,-2160.15,0.00018082,2]
[406899897,1772267549694,-611.61,0.00018082,2]
[406899898,1772267549703,-587.54,0.00018082,2]
[406899899,1772267549712,-500.97,0.00018082,2]
[406899900,1772267549721,-679.97,0.00018082,2]
[406899901,1772267549731,-62454.68,0.00018082,2]
[406899902,1772267549741,-316.19495136,0.00018082,2]
[406899903,1772267549750,-4931.54,0.00018082,2]
[406899904,1772267549760,-691.25,0.00018082,2]
[406899905,1772267549769,-2603.07,0.00018082,2]
[406899906,1772267549779,-7026.09,0.00018082,2]
[406899907,1772267549788,-668.0,0.00018082,2]
[406899908,1772267549801,-1193.68,0.00018082,2]
[406899909,1772267549810,-635.83,0.00018082,2]
[406899910,1772267549820,-500.0,0.00018082,2]
[406899911,1772267549830,-1018.54,0.00018082,2]
[406899912,1772267549839,-8795.12,0.00018082,2]
[406899913,1772267549849,-511.19,0.00018082,2]
[406899914,1772267549859,-540.92327479,0.00018082,2]
[406899915,1772267549868,-423.86390659,0.00018082,2]
[406899916,1772267549878,-2059.67,0.00018082,2]
[406899917,1772267549887,-2791.04,0.00018082,2]
[406899918,1772267549896,-500.0,0.00018082,2]
[406899919,1772267549906,-4120.89,0.00018082,2]
[406899920,1772267549915,-738.7,0.00018082,2]
[406899921,1772267549924,-858.19,0.00018082,2]
[406899922,1772267549934,-1558.46,0.00018082,2]
[406899923,1772267549943,-3104.3,0.00018082,2]
[406899924,1772267549952,-41294.65,0.00018082,2]
[406899925,1772267549961,-500.0,0.00018082,2]
[406899926,1772267549971,-4305.9,0.00018082,2]
[406899927,1772267549980,-1079.08,0.00018082,2]
[406899928,1772267549990,-17553.64,0.00018082,2]
[406899929,1772267549999,-829.59,0.00018082,2]
[406899930,1772267550009,-1590.25,0.00018082,2]
[406899931,1772267550019,-1094.77,0.00018082,2]
[406899932,1772267550028,-836.94,0.00018082,2]
[406899933,1772267550038,-2501.06,0.00018082,2]
[406899934,1772267550049,-624.89,0.00018082,2]
[406899935,1772267550059,-500.0,0.00018082,2]
[406899936,1772267550069,-587.66,0.00018082,2]
[406899937,1772267550079,-612.52,0.00018082,2]
[406899938,1772267550088,-798.52,0.00018082,2]
[406899939,1772267550098,-920.96,0.00018082,2]
[406899940,1772267550107,-502.1,0.00018082,2]
[406899941,1772267550117,-833.23,0.00018082,2]
[406899942,1772267550127,-1661.19,0.00018082,2]
[406899943,1772267550138,-884.15,0.00018082,2]
[406899944,1772267550151,-997.87,0.00018082,2]
[406899945,1772267550161,-714.12,0.00018082,2]
[406899946,1772267550170,-2806.98,0.00018082,2]
[406899947,1772267550180,-3389.85,0.00018082,2]
[406899948,1772267550190,-500.0,0.00018082,2]
[406899949,1772267550200,-410.60264875,0.00018082,2]
[406899950,1772267550209,-736.98,0.00018082,2]
[406899951,1772267550219,-3040.54,0.00018082,2]
[406899952,1772267550228,-1624.77,0.00018082,2]
[406899953,1772267550238,-8862.41,0.00018082,2]
[406899954,1772267550247,-21682.96,0.00018082,2]
[406899955,1772267550256,-1097.26,0.00018082,2]
[406899956,1772267550266,-500.0,0.00018082,2]
[406899957,1772267550275,-7502.8,0.00018082,2]
[406899958,1772267550285,-565.02,0.00018082,2]
[406899959,1772267550296,-6625.37,0.00018082,2]
[406899960,1772267550306,-2462.23,0.00018082,2]
[406899961,1772267550316,-1430.4,0.00018082,2]
[406899962,1772267550325,-1591.21,0.00018082,2]
[406899963,1772267550336,-1097.85,0.00018082,2]
[406899964,1772267550345,-941.74,0.00018082,2]
[406899965,1772267550355,-2991.59,0.00018082,2]
[406899966,1772267550364,-1208.52,0.00018082,2]
[406899967,1772267550374,-1852.72,0.00018082,2]
[406899968,1772267550383,-500.0,0.00018082,2]